[Event "XIII Mediterranean Championship 2023"]
[Site "Castell-Platja d Aro"]
[Date "2023.11.11"]
[Round "9.11"]
[White "Masague Artero, Guerau"]
[Black "Banos, Oscar"]
[Result "1-0"]
[ECO "D02"]
[WhiteElo "2305"]
[BlackElo "2188"]
[Annotator "RC"]
[PlyCount "107"]
[EventDate "2023.10.26"]
[EventType "swiss"]
[EventCountry "ESP"]
[SourceTitle "playchess.com"]
[Source "ChessBase"]
[SourceQuality "1"]
[TimeControl "5400+30"]

1. Nf3 {[%emt 0:00:36]} d5 {[%emt 0:00:16]} 2. g3 {[%emt 0:00:25]} Nf6 {[%emt 0:00:24]} 3. Bg2 {[%emt 0:00:05]} e6 {[%emt 0:00:56]} 4. O-O {[%emt 0:00:06]} Be7 {[%emt 0:00:08]} 5. c4 {[%emt 0:00:22]} O-O {[%emt 0:00:29]} 6. b3 {[%emt 0:08:56]} b6 {[%emt 0:08:33]} 7. Bb2 {[%emt 0:00:10]} Bb7 {[%emt 0:00:40]} 8. cxd5 {[%emt 0:02:28]} Nxd5 {[%emt 0:06:47]} 9. d4 {[%emt 0:00:52]} c5 {[%emt 0:01:27]} 10. dxc5 {[%emt 0:06:02]} Bxc5 {[%emt 0:01:53]} 11. Nbd2 {[%emt 0:00:29]} Nc6 {[%emt 0:04:37]} 12. a3 {[%emt 0:01:10]} b5 {[%emt 0:10:40]} 13. Ne4 {[%emt 0:06:23]} Be7 {[%emt 0:00:25]} 14. Rc1 {[%emt 0:00:19]} Rc8 {[%emt 0:04:30]} 15. Qd3 {[%emt 0:13:06]} b4 {[%emt 0:02:08]} 16. Nc5 {[%emt 0:11:10]} Ba8 {[%emt 0:01:42]} 17. a4 {[%emt 0:04:27]} Nc3 {[%emt 0:11:42]} 18. Bxc3 {[%emt 0:10:48]} Bxc5 {[%emt 0:03:36]} 19. Qxd8 {[%emt 0:07:48]} Rfxd8 {[%emt 0:01:37]} 20. Bxg7 {[%emt 0:05:09]} Kxg7 {[%emt 0:06:53]} 21. Rxc5 {[%emt 0:00:08]} Nd4 {[%emt 0:00:06]} 22. Rg5+ {[%emt 0:03:25]} Kf6 {[%emt 0:00:39]} 23. Ra5 {[%emt 0:00:14]} Nxe2+ {[%emt 0:08:54]} 24. Kh1 {[%emt 0:00:04]} Rc7 {[%emt 0:00:12]} 25. Ne5 {[%emt 0:04:11]} Bxg2+ {[%emt 0:02:19]} 26. Kxg2 {[%emt 0:00:01]} Nc1 {[%emt 0:00:32]} 27. Rb5 {[%emt 0:01:43]} Rd4 {[%emt 0:09:06]} 28. Nf3 {[%emt 0:02:24]} Re4 {[%emt 0:01:35]} 29. Re1 {[%emt 0:00:57]} Rxe1 {[%emt 0:02:41]} 30. Nxe1 {[%emt 0:00:00]} Rc3 {[%emt 0:00:48]} 31. Rxb4 {[%emt 0:00:25]} Rxb3 {[%emt 0:01:25]} 32. Rf4+ {[%emt 0:00:15]} Kg7 {[%emt 0:00:24]} 33. Rc4 {[%emt 0:01:26]} Nd3 {[%emt 0:04:51]} 34. Nxd3 {[%emt 0:02:39]} Rxd3 {[%emt 0:00:05]} 35. Rc7 {[%emt 0:00:02]} a5 {[%emt 0:00:29]} 36. Rc5 {[%emt 0:00:01]} Ra3 {[%emt 0:01:49]} 37. Rxa5 {[%emt 0:00:04]} Kg6 {[%emt 0:00:40]} 38. Ra6 {[%emt 0:02:03]} h5 {[%emt 0:01:14]} 39. h4 {[%emt 0:01:23]} Kg7 {[%emt 0:00:19]} 40. Ra8 {[%emt 0:00:13]} Kf6 {[%emt 0:01:47]} 41. a5 {[%emt 0:00:39]} e5 {[%emt 0:00:25]} 42. a6 {[%emt 0:02:05]} e4 {[%emt 0:00:16]} 43. a7 {[%emt 0:02:35]} Kg7 {[%emt 0:01:22]} 44. Kf1 {[%emt 0:01:31]} Kf6 {[%emt 0:00:10]} 45. Ke2 {[%emt 0:00:16]} Kf5 {[%emt 0:00:23]} 46. g4+ {[%emt 0:00:43]} Kf6 {[%emt 0:01:03]} 47. g5+ {[%emt 0:02:04]} Kg7 {[%emt 0:00:09]} 48. Kd2 {[%emt 0:00:03]} Kh7 {[%emt 0:00:28]} 49. Kc2 {[%emt 0:00:04]} Kg7 {[%emt 0:00:21]} 50. Kb2 {[%emt 0:00:20]} Ra6 {[%emt 0:00:08]} 51. Kc3 {[%emt 0:00:11]} Ra2 {[%emt 0:00:17]} 52. Kd4 {[%emt 0:00:15]} Ra4+ {[%emt 0:00:30]} 53. Ke5 {[%emt 0:00:01]} Kh7 {[%emt 0:00:35]} 54. Kf6 {[%emt 0:01:18]} 1-0

[Event "XIII Mediterranean Championship 2023"]
[Site "Castell-Platja d Aro"]
[Date "2023.11.11"]
[Round "9.12"]
[White "Martinez Pla, Xavier"]
[Black "Jimenez Fernandez, Rebeca"]
[Result "1-0"]
[ECO "B12"]
[WhiteElo "2263"]
[BlackElo "2053"]
[Annotator "RC"]
[PlyCount "67"]
[EventDate "2023.10.26"]
[EventType "swiss"]
[EventCountry "ESP"]
[SourceTitle "playchess.com"]
[Source "ChessBase"]
[SourceQuality "1"]
[TimeControl "5400+30"]

1. e4 {[%emt 0:04:11]} c6 {[%emt 0:00:05]} 2. d4 {[%emt 0:01:02]} d5 {[%emt 0:00:03]} 3. e5 {[%emt 0:00:06]} c5 {[%emt 0:00:03]} 4. Nf3 {[%emt 0:00:11]} Nc6 {[%emt 0:06:34]} 5. dxc5 {[%emt 0:01:21]} Bg4 {[%emt 0:02:52]} 6. c3 {[%emt 0:06:27]} e6 {[%emt 0:02:17]} 7. Be3 {[%emt 0:00:59]} Nge7 {[%emt 0:15:17]} 8. Bb5 {[%emt 0:07:43]} Qc7 {[%emt 0:01:30]} 9. Nbd2 {[%emt 0:04:19]} Ng6 {[%emt 0:06:51]} 10. Bd4 {[%emt 0:05:26]} O-O-O {[%emt 0:08:38]} 11. Bxc6 {[%emt 0:02:03]} Qxc6 {[%emt 0:01:02]} 12. b4 {[%emt 0:02:41]} f6 {[%emt 0:01:36]} 13. h3 {[%emt 0:06:04]} fxe5 {[%emt 0:06:11]} 14. hxg4 {[%emt 0:01:24]} exd4 {[%emt 0:00:06]} 15. Nxd4 {[%emt 0:01:04]} Qd7 {[%emt 0:02:23]} 16. N2f3 {[%emt 0:04:48]} e5 {[%emt 0:03:25]} 17. Nf5 {[%emt 0:01:24]} h5 {[%emt 0:13:40]} 18. Rxh5 {[%emt 0:16:55]} Rxh5 {[%emt 0:00:23]} 19. gxh5 {[%emt 0:00:02]} Qxf5 {[%emt 0:02:38]} 20. hxg6 {[%emt 0:00:53]} Qxg6 {[%emt 0:00:17]} 21. Nxe5 {[%emt 0:07:45]} Qf6 {[%emt 0:10:49]} 22. Qd4 {[%emt 0:10:21]} Re8 {[%emt 0:05:56]} 23. f4 {[%emt 0:05:36]} g5 {[%emt 0:02:48]} 24. O-O-O {[%emt 0:01:05]} Qxf4+ {[%emt 0:04:00]} 25. Qxf4 {[%emt 0:00:08]} gxf4 {[%emt 0:00:02]} 26. Rxd5 {[%emt 0:03:36]} Bg7 {[%emt 0:00:26]} 27. Nc4 {[%emt 0:01:00]} Kc7 {[%emt 0:02:24]} 28. Kd2 {[%emt 0:02:11]} Bh6 {[%emt 0:01:12]} 29. Rd6 {[%emt 0:02:44]} Rh8 {[%emt 0:00:48]} 30. Kd3 {[%emt 0:00:23]} Bg7 {[%emt 0:00:35]} 31. Rg6 {[%emt 0:00:52]} Rd8+ {[%emt 0:00:04]} 32. Nd6 {[%emt 0:00:15]} Rd7 {[%emt 0:00:22]} 33. Rxg7 {[%emt 0:00:12]} Rxg7 {[%emt 0:00:08]} 34. Ne8+ {[%emt 0:00:01]} 1-0

[Event "XIII Mediterranean Championship 2023"]
[Site "Castell-Platja d Aro"]
[Date "2023.11.11"]
[Round "9.13"]
[White "Hernando Rodrigo, Julio Antonio"]
[Black "Pham Guerrero, Sergi"]
[Result "1/2-1/2"]
[ECO "A58"]
[WhiteElo "2202"]
[BlackElo "2072"]
[Annotator "RC"]
[PlyCount "156"]
[EventDate "2023.10.26"]
[EventType "swiss"]
[EventCountry "ESP"]
[SourceTitle "playchess.com"]
[Source "ChessBase"]
[SourceQuality "1"]
[TimeControl "5400+30"]

1. d4 {[%emt 0:00:05]} Nf6 {[%emt 0:04:37]} 2. c4 {[%emt 0:00:12]} c5 {[%emt 0:00:21]} 3. d5 {[%emt 0:00:16]} b5 {[%emt 0:00:08]} 4. cxb5 {[%emt 0:00:08]} a6 {[%emt 0:00:06]} 5. bxa6 {[%emt 0:00:08]} g6 {[%emt 0:00:51]} 6. Nc3 {[%emt 0:00:10]} Bg7 {[%emt 0:00:39]} 7. e4 {[%emt 0:00:14]} O-O {[%emt 0:01:09]} 8. Nf3 {[%emt 0:01:54]} Qa5 {[%emt 0:00:32]} 9. Bd2 {[%emt 0:02:25]} Bxa6 {[%emt 0:00:29]} 10. Be2 {[%emt 0:01:18]} d6 {[%emt 0:01:57]} 11. O-O {[%emt 0:00:19]} Bxe2 {[%emt 0:00:35]} 12. Qxe2 {[%emt 0:00:13]} Qa6 {[%emt 0:00:22]} 13. Nb5 {[%emt 0:10:59]} Nxe4 {[%emt 0:08:03]} 14. Qxe4 {[%emt 0:00:22]} Qxb5 {[%emt 0:00:06]} 15. Qxe7 {[%emt 0:00:25]} Qd7 {[%emt 0:06:51]} 16. Qh4 {[%emt 0:19:11]} Ra4 {[%emt 0:07:08]} 17. Qg3 {[%emt 0:04:09]} Rg4 {[%emt 0:06:25]} 18. Qh3 {[%emt 0:00:10]} Ra4 {[%emt 0:00:33]} 19. Rfb1 {[%emt 0:10:31]} Qxh3 {[%emt 0:00:59]} 20. gxh3 {[%emt 0:00:05]} Nd7 {[%emt 0:01:37]} 21. Bc3 {[%emt 0:03:53]} Bxc3 {[%emt 0:09:34]} 22. bxc3 {[%emt 0:00:05]} Rfa8 {[%emt 0:01:02]} 23. Rb7 {[%emt 0:02:48]} Nf6 {[%emt 0:00:45]} 24. Ng5 {[%emt 0:02:08]} Rxa2 {[%emt 0:07:02]} 25. Rxa2 {[%emt 0:02:54]} Rxa2 {[%emt 0:00:15]} 26. Nxf7 {[%emt 0:15:26]} Nxd5 {[%emt 0:00:51]} 27. Nh6+ {[%emt 0:03:21]} Kf8 {[%emt 0:07:58]} 28. c4 {[%emt 0:01:22]} Ne7 {[%emt 0:02:20]} 29. Ng4 {[%emt 0:00:45]} d5 {[%emt 0:09:30]} 30. Nf6 {[%emt 0:08:26]} dxc4 {[%emt 0:03:47]} 31. Nxh7+ {[%emt 0:00:10]} Kf7 {[%emt 0:01:13]} 32. Ng5+ {[%emt 0:00:20]} Ke8 {[%emt 0:01:15]} 33. Ne4 {[%emt 0:00:39]} Nd5 {[%emt 0:01:05]} 34. Nd6+ {[%emt 0:01:07]} Kf8 {[%emt 0:00:35]} 35. Nxc4 {[%emt 0:01:28]} Nf4 {[%emt 0:00:21]} 36. Rb1 {[%emt 0:01:18]} Nxh3+ {[%emt 0:00:21]} 37. Kg2 {[%emt 0:00:06]} Nf4+ {[%emt 0:00:11]} 38. Kf3 {[%emt 0:02:27]} Nd3 {[%emt 0:01:04]} 39. Ke3 {[%emt 0:00:47]} Nb4 {[%emt 0:03:51]} 40. Rg1 {[%emt 0:02:11]} Nd5+ {[%emt 0:01:03]} 41. Kf3 {[%emt 0:00:47]} Ra4 {[%emt 0:02:24]} 42. Ne5 {[%emt 0:01:24]} Rf4+ {[%emt 0:01:27]} 43. Kg3 {[%emt 0:00:12]} Kg7 {[%emt 0:00:59]} 44. Ra1 {[%emt 0:01:50]} Re4 {[%emt 0:04:35]} 45. Ra7+ {[%emt 0:00:11]} Kh6 {[%emt 0:01:10]} 46. Nf7+ {[%emt 0:02:13]} Kh5 {[%emt 0:03:15]} 47. Rd7 {[%emt 0:01:40]} Rg4+ {[%emt 0:00:44]} 48. Kf3 {[%emt 0:00:02]} Rf4+ {[%emt 0:00:16]} 49. Kg2 {[%emt 0:00:37]} Nf6 {[%emt 0:00:47]} 50. Rc7 {[%emt 0:00:10]} Rf5 {[%emt 0:01:01]} 51. f3 {[%emt 0:01:04]} Nd5 {[%emt 0:00:21]} 52. Ra7 {[%emt 0:00:27]} c4 {[%emt 0:00:14]} 53. Nd6 {[%emt 0:00:13]} Rf4 {[%emt 0:01:36]} 54. Ra5 {[%emt 0:01:04]} Rd4 {[%emt 0:00:16]} 55. Rc5 {[%emt 0:00:34]} g5 {[%emt 0:00:27]} 56. Kg3 {[%emt 0:00:34]} Ne3 {[%emt 0:00:34]} 57. Ne4 {[%emt 0:00:13]} c3 {[%emt 0:00:52]} 58. Rxc3 {[%emt 0:00:44]} Nf5+ {[%emt 0:00:26]} 59. Kf2 {[%emt 0:00:02]} Ra4 {[%emt 0:00:19]} 60. Rc5 {[%emt 0:00:39]} Ra2+ {[%emt 0:00:17]} 61. Kg1 {[%emt 0:00:27]} Ra1+ {[%emt 0:00:43]} 62. Kf2 {[%emt 0:00:22]} Ra2+ {[%emt 0:00:05]} 63. Ke1 {[%emt 0:00:28]} Kg6 {[%emt 0:01:01]} 64. Rc6+ {[%emt 0:00:19]} Kh5 {[%emt 0:00:24]} 65. Rf6 {[%emt 0:01:04]} Ra5 {[%emt 0:00:45]} 66. Rxf5 {[%emt 0:00:18]} Rxf5 {[%emt 0:00:02]} 67. Ng3+ {[%emt 0:00:05]} Kg6 {[%emt 0:00:08]} 68. Nxf5 {[%emt 0:00:06]} Kxf5 {[%emt 0:00:01]} 69. h3 {[%emt 0:00:17]} Kg6 {[%emt 0:01:26]} 70. Kf2 {[%emt 0:00:07]} Kh6 {[%emt 0:00:29]} 71. Ke3 {[%emt 0:00:41]} Kg6 {[%emt 0:00:18]} 72. Kf2 {[%emt 0:02:00]} Kf6 {[%emt 0:00:19]} 73. Kg2 {[%emt 0:00:07]} Kg6 {[%emt 0:00:06]} 74. Kf2 {[%emt 0:00:40]} Kf6 {[%emt 0:00:13]} 75. Ke2 {[%emt 0:00:10]} Ke6 {[%emt 0:00:17]} 76. Kd3 {[%emt 0:00:19]} Kf5 {[%emt 0:00:44]} 77. Ke3 {[%emt 0:00:27]} Ke5 {[%emt 0:00:10]} 78. Kf2 {[%emt 0:00:12]} Kf6 {[%emt 0:00:30]} 1/2-1/2

[Event "XIII Mediterranean Championship 2023"]
[Site "Castell-Platja d Aro"]
[Date "2023.11.11"]
[Round "9.14"]
[White "Menac Comas, Joan Ramon"]
[Black "Valle Luis, Leo"]
[Result "0-1"]
[ECO "A37"]
[WhiteElo "2044"]
[BlackElo "2216"]
[Annotator "RC"]
[PlyCount "94"]
[EventDate "2023.10.26"]
[EventType "swiss"]
[EventCountry "ESP"]
[SourceTitle "playchess.com"]
[Source "ChessBase"]
[SourceQuality "1"]
[TimeControl "5400+30"]

1. Nf3 {[%emt 0:00:02]} c5 {[%emt 0:00:06]} 2. c4 {[%emt 0:00:13]} g6 {[%emt 0:00:06]} 3. g3 {[%emt 0:00:09]} Bg7 {[%emt 0:00:05]} 4. Nc3 {[%emt 0:00:13]} Nc6 {[%emt 0:00:05]} 5. Bg2 {[%emt 0:00:13]} e5 {[%emt 0:00:07]} 6. O-O {[%emt 0:00:30]} d6 {[%emt 0:00:04]} 7. Ne1 {[%emt 0:00:44]} Be6 {[%emt 0:00:07]} 8. Nc2 {[%emt 0:00:21]} Bxc4 {[%emt 0:01:32]} 9. b4 {[%emt 0:05:37]} cxb4 {[%emt 0:03:27]} 10. Nxb4 {[%emt 0:00:27]} Nxb4 {[%emt 0:07:05]} 11. Qa4+ {[%emt 0:00:46]} Qd7 {[%emt 0:00:06]} 12. Qxb4 {[%emt 0:00:21]} Ba6 {[%emt 0:00:02]} 13. Ba3 {[%emt 0:06:40]} Ne7 {[%emt 0:10:29]} 14. Rab1 {[%emt 0:20:50]} Nc6 {[%emt 0:08:43]} 15. Bxc6 {[%emt 0:06:43]} Qxc6 {[%emt 0:01:49]} 16. Qxd6 {[%emt 0:02:35]} Qxd6 {[%emt 0:02:44]} 17. Bxd6 {[%emt 0:00:02]} Rd8 {[%emt 0:01:10]} 18. Bb4 {[%emt 0:04:32]} f5 {[%emt 0:03:20]} 19. d3 {[%emt 0:03:38]} Kf7 {[%emt 0:00:38]} 20. Rfc1 {[%emt 0:00:30]} Rd7 {[%emt 0:01:19]} 21. a4 {[%emt 0:09:19]} Bh6 {[%emt 0:00:13]} 22. Rc2 {[%emt 0:03:02]} Rc8 {[%emt 0:03:15]} 23. Rcb2 {[%emt 0:00:59]} Bg7 {[%emt 0:00:21]} 24. Rb3 {[%emt 0:00:20]} Ke6 {[%emt 0:04:46]} 25. a5 {[%emt 0:01:28]} Rdc7 {[%emt 0:10:57]} 26. Na4 {[%emt 0:03:19]} e4 {[%emt 0:09:44]} 27. Bd2 {[%emt 0:09:04]} Rc2 {[%emt 0:03:51]} 28. Be3 {[%emt 0:00:27]} Bf8 {[%emt 0:05:51]} 29. dxe4 {[%emt 0:04:55]} fxe4 {[%emt 0:00:16]} 30. Bxa7 {[%emt 0:00:46]} Rc1+ {[%emt 0:00:21]} 31. Kg2 {[%emt 0:03:48]} Bxe2 {[%emt 0:00:36]} 32. Nc5+ {[%emt 0:02:38]} R8xc5 {[%emt 0:01:54]} 33. Bxc5 {[%emt 0:00:46]} Bf3+ {[%emt 0:00:05]} 34. Kh3 {[%emt 0:00:11]} Rxc5 {[%emt 0:00:04]} 35. Rb5 {[%emt 0:02:44]} h5 {[%emt 0:01:08]} 36. Rxb7 {[%emt 0:02:32]} Rxa5 {[%emt 0:00:25]} 37. R1b6+ {[%emt 0:00:52]} Bd6 {[%emt 0:00:07]} 38. Rg7 {[%emt 0:00:49]} Kf6 {[%emt 0:00:46]} 39. Rg8 {[%emt 0:02:15]} Kf7 {[%emt 0:00:08]} 40. Rd8 {[%emt 0:01:54]} Be7 {[%emt 0:00:42]} 41. Rh8 {[%emt 0:01:40]} Kg7 {[%emt 0:01:00]} 42. Re8 {[%emt 0:00:30]} Re5 {[%emt 0:00:07]} 43. Rb3 {[%emt 0:01:33]} g5 {[%emt 0:00:38]} 44. g4 {[%emt 0:00:25]} hxg4+ {[%emt 0:00:10]} 45. Kg3 {[%emt 0:00:05]} Kf7 {[%emt 0:00:06]} 46. Rh8 {[%emt 0:00:59]} Bd6 {[%emt 0:01:31]} 47. Rb7+ {[%emt 0:00:32]} Re7# {[%emt 0:00:07]} 0-1

[Event "XIII Mediterranean Championship 2023"]
[Site "Castell-Platja d Aro"]
[Date "2023.11.11"]
[Round "9.15"]
[White "Alsina Leal, Daniel"]
[Black "Garcia Paolicchi, Raul"]
[Result "1/2-1/2"]
[ECO "B07"]
[WhiteElo "2531"]
[BlackElo "2051"]
[Annotator "RC"]
[PlyCount "88"]
[EventDate "2023.10.26"]
[EventType "swiss"]
[EventCountry "ESP"]
[SourceTitle "playchess.com"]
[Source "ChessBase"]
[SourceQuality "1"]
[TimeControl "5400+30"]

1. e4 {[%emt 0:02:55]} d6 {[%emt 0:00:10]} 2. d4 {[%emt 0:00:09]} Nf6 {[%emt 0:00:10]} 3. Bd3 {[%emt 0:00:03]} e5 {[%emt 0:00:16]} 4. Nf3 {[%emt 0:00:05]} exd4 {[%emt 0:00:44]} 5. Nxd4 {[%emt 0:00:04]} g6 {[%emt 0:00:24]} 6. O-O {[%emt 0:00:14]} Bg7 {[%emt 0:00:17]} 7. Bg5 {[%emt 0:00:30]} h6 {[%emt 0:01:02]} 8. Bh4 {[%emt 0:00:36]} O-O {[%emt 0:00:48]} 9. Nc3 {[%emt 0:01:37]} Nc6 {[%emt 0:00:31]} 10. Nxc6 {[%emt 0:01:04]} bxc6 {[%emt 0:00:06]} 11. f4 {[%emt 0:01:38]} Qd7 {[%emt 0:02:49]} 12. h3 {[%emt 0:07:35]} Bb7 {[%emt 0:01:54]} 13. Qd2 {[%emt 0:02:06]} Nh7 {[%emt 0:09:26]} 14. Rae1 {[%emt 0:03:36]} Rae8 {[%emt 0:04:58]} 15. Bg3 {[%emt 0:03:56]} Qc8 {[%emt 0:11:41]} 16. e5 {[%emt 0:07:04]} Ba6 {[%emt 0:05:18]} 17. exd6 {[%emt 0:17:20]} cxd6 {[%emt 0:00:19]} 18. f5 {[%emt 0:00:22]} Rxe1 {[%emt 0:02:21]} 19. Rxe1 {[%emt 0:04:36]} Bxd3 {[%emt 0:07:11]} 20. Qxd3 {[%emt 0:00:18]} Qxf5 {[%emt 0:03:43]} 21. Qxf5 {[%emt 0:00:53]} gxf5 {[%emt 0:00:06]} 22. Bxd6 {[%emt 0:12:57]} Rd8 {[%emt 0:02:05]} 23. Be5 {[%emt 0:06:54]} Re8 {[%emt 0:05:40]} 24. Bg3 {[%emt 0:00:35]} Re6 {[%emt 0:00:20]} 25. Nd1 {[%emt 0:11:58]} Ng5 {[%emt 0:06:25]} 26. c3 {[%emt 0:02:13]} Ne4 {[%emt 0:03:49]} 27. Bf2 {[%emt 0:03:46]} a6 {[%emt 0:02:52]} 28. Ne3 {[%emt 0:04:30]} f4 {[%emt 0:06:55]} 29. Nc4 {[%emt 0:00:34]} Kh7 {[%emt 0:06:48]} 30. Bb6 {[%emt 0:01:16]} Bf8 {[%emt 0:04:40]} 31. Kh2 {[%emt 0:01:57]} Be7 {[%emt 0:04:46]} 32. Bc7 {[%emt 0:00:48]} Bh4 {[%emt 0:00:28]} 33. Rf1 {[%emt 0:00:52]} Bg3+ {[%emt 0:01:10]} 34. Kg1 {[%emt 0:00:13]} Rf6 {[%emt 0:01:22]} 35. Ne5 {[%emt 0:00:49]} Nc5 {[%emt 0:01:58]} 36. Nf3 {[%emt 0:01:42]} Nd3 {[%emt 0:01:52]} 37. b3 {[%emt 0:00:21]} Nc5 {[%emt 0:01:04]} 38. Rd1 {[%emt 0:00:28]} Ne4 {[%emt 0:00:37]} 39. Be5 {[%emt 0:00:41]} Re6 {[%emt 0:00:30]} 40. Rd7 {[%emt 0:00:33]} Ng5 {[%emt 0:01:03]} 41. Bd4 {[%emt 0:00:40]} Nxf3+ {[%emt 0:00:14]} 42. gxf3 {[%emt 0:00:02]} Re1+ {[%emt 0:00:31]} 43. Kg2 {[%emt 0:00:04]} Re2+ {[%emt 0:00:12]} 44. Kf1 {[%emt 0:00:04]} Re1+ {[%emt 0:00:05]} 1/2-1/2

[Event "XIII Mediterranean Championship 2023"]
[Site "Castell-Platja d Aro"]
[Date "2023.11.11"]
[Round "9.16"]
[White "Garcia Ramos, Daniel"]
[Black "Alonso Gimenez, Mauro"]
[Result "1-0"]
[ECO "B32"]
[WhiteElo "2455"]
[BlackElo "1978"]
[Annotator "RC"]
[PlyCount "81"]
[EventDate "2023.10.26"]
[EventType "swiss"]
[EventCountry "ESP"]
[SourceTitle "playchess.com"]
[Source "ChessBase"]
[SourceQuality "1"]
[TimeControl "5400+30"]

1. e4 {[%emt 0:23:12]} c5 {[%emt 0:00:18]} 2. Nf3 {[%emt 0:00:11]} Nc6 {[%emt 0:00:06]} 3. d4 {[%emt 0:01:09]} cxd4 {[%emt 0:00:06]} 4. Nxd4 {[%emt 0:00:04]} e5 {[%emt 0:00:06]} 5. Nb5 {[%emt 0:00:06]} d6 {[%emt 0:00:04]} 6. c4 {[%emt 0:00:30]} a6 {[%emt 0:02:19]} 7. N5c3 {[%emt 0:00:08]} Be7 {[%emt 0:02:35]} 8. Be3 {[%emt 0:00:19]} Nf6 {[%emt 0:00:24]} 9. Be2 {[%emt 0:00:23]} O-O {[%emt 0:01:29]} 10. O-O {[%emt 0:01:06]} Be6 {[%emt 0:01:06]} 11. h3 {[%emt 0:17:45]} Rc8 {[%emt 0:12:55]} 12. Qd2 {[%emt 0:04:42]} Qa5 {[%emt 0:12:58]} 13. Rd1 {[%emt 0:02:42]} b5 {[%emt 0:13:21]} 14. cxb5 {[%emt 0:19:55]} axb5 {[%emt 0:00:38]} 15. Nxb5 {[%emt 0:04:56]} Nxe4 {[%emt 0:00:39]} 16. Qxa5 {[%emt 0:00:28]} Nxa5 {[%emt 0:00:04]} 17. N1c3 {[%emt 0:00:26]} Nxc3 {[%emt 0:06:50]} 18. Nxc3 {[%emt 0:00:10]} Rb8 {[%emt 0:03:09]} 19. b3 {[%emt 0:01:14]} f5 {[%emt 0:01:31]} 20. Nd5 {[%emt 0:06:40]} Bxd5 {[%emt 0:01:01]} 21. Rxd5 {[%emt 0:00:02]} Nc6 {[%emt 0:00:10]} 22. Bc4 {[%emt 0:00:29]} Kh8 {[%emt 0:00:09]} 23. a4 {[%emt 0:04:00]} Nb4 {[%emt 0:01:14]} 24. a5 {[%emt 0:04:48]} f4 {[%emt 0:10:01]} 25. Bb6 {[%emt 0:01:21]} Nxd5 {[%emt 0:01:29]} 26. Bxd5 {[%emt 0:00:06]} g5 {[%emt 0:01:12]} 27. b4 {[%emt 0:02:53]} h5 {[%emt 0:06:49]} 28. b5 {[%emt 0:01:01]} g4 {[%emt 0:06:44]} 29. hxg4 {[%emt 0:00:10]} hxg4 {[%emt 0:00:06]} 30. Rb1 {[%emt 0:00:11]} g3 {[%emt 0:01:34]} 31. Bc7 {[%emt 0:01:29]} Rxb5 {[%emt 0:07:18]} 32. Rxb5 {[%emt 0:00:07]} Rc8 {[%emt 0:00:03]} 33. Rb8 {[%emt 0:01:43]} Rxb8 {[%emt 0:00:47]} 34. Bxb8 {[%emt 0:00:06]} Bd8 {[%emt 0:00:03]} 35. a6 {[%emt 0:00:05]} Bb6 {[%emt 0:00:03]} 36. Bxd6 {[%emt 0:01:40]} Bxf2+ {[%emt 0:00:12]} 37. Kf1 {[%emt 0:00:05]} Kg7 {[%emt 0:00:28]} 38. Bxe5+ {[%emt 0:00:04]} Kg6 {[%emt 0:00:06]} 39. Bxf4 {[%emt 0:00:04]} Kf5 {[%emt 0:00:03]} 40. Bxg3 {[%emt 0:00:14]} Ba7 {[%emt 0:00:09]} 41. Bf2 {[%emt 0:00:04]} 1-0

[Event "XIII Mediterranean Championship 2023"]
[Site "Castell-Platja d Aro"]
[Date "2023.11.11"]
[Round "9.17"]
[White "Garcia Jimenez, Francisco Javier"]
[Black "Makka, Ioulia"]
[Result "1-0"]
[ECO "C51"]
[WhiteElo "2249"]
[BlackElo "1900"]
[Annotator "RC"]
[PlyCount "67"]
[EventDate "2023.10.26"]
[EventType "swiss"]
[EventCountry "ESP"]
[SourceTitle "playchess.com"]
[Source "ChessBase"]
[SourceQuality "1"]
[TimeControl "5400+30"]

1. e4 {[%emt 0:00:04]} e5 {[%emt 0:03:49]} 2. Nf3 {[%emt 0:00:19]} Nc6 {[%emt 0:00:06]} 3. Bc4 {[%emt 0:00:04]} Bc5 {[%emt 0:00:37]} 4. b4 {[%emt 0:00:06]} Bb6 {[%emt 0:01:13]} 5. a4 {[%emt 0:04:16]} a6 {[%emt 0:00:14]} 6. Ba3 {[%emt 0:02:48]} d6 {[%emt 0:01:28]} 7. c3 {[%emt 0:00:36]} Nf6 {[%emt 0:04:02]} 8. d3 {[%emt 0:00:20]} O-O {[%emt 0:00:40]} 9. O-O {[%emt 0:00:05]} Ne7 {[%emt 0:09:46]} 10. Nbd2 {[%emt 0:04:48]} Ng6 {[%emt 0:06:22]} 11. d4 {[%emt 0:01:14]} h6 {[%emt 0:03:02]} 12. Qb3 {[%emt 0:05:49]} Qe7 {[%emt 0:05:41]} 13. Rfe1 {[%emt 0:01:57]} Bd7 {[%emt 0:14:12]} 14. Bf1 {[%emt 0:03:38]} Ba7 {[%emt 0:07:54]} 15. b5 {[%emt 0:11:47]} axb5 {[%emt 0:01:45]} 16. axb5 {[%emt 0:00:06]} Be6 {[%emt 0:05:53]} 17. Nc4 {[%emt 0:08:10]} Nd7 {[%emt 0:04:16]} 18. Qb2 {[%emt 0:05:11]} f6 {[%emt 0:02:17]} 19. Ne3 {[%emt 0:08:17]} Nb6 {[%emt 0:02:13]} 20. Bb4 {[%emt 0:05:43]} c5 {[%emt 0:03:58]} 21. bxc6 {[%emt 0:10:14]} bxc6 {[%emt 0:00:09]} 22. Nf5 {[%emt 0:00:02]} Bxf5 {[%emt 0:06:01]} 23. exf5 {[%emt 0:01:18]} Nf4 {[%emt 0:02:05]} 24. dxe5 {[%emt 0:00:18]} c5 {[%emt 0:00:33]} 25. Ba5 {[%emt 0:04:35]} Rab8 {[%emt 0:02:06]} 26. Qd2 {[%emt 0:01:42]} Nh5 {[%emt 0:04:18]} 27. exd6 {[%emt 0:02:20]} Qb7 {[%emt 0:00:39]} 28. Re7 {[%emt 0:00:42]} Nd7 {[%emt 0:00:30]} 29. Bc7 {[%emt 0:00:51]} Ne5 {[%emt 0:05:16]} 30. Nxe5 {[%emt 0:00:53]} fxe5 {[%emt 0:00:05]} 31. Bxb8 {[%emt 0:00:31]} Qxb8 {[%emt 0:00:31]} 32. Raxa7 {[%emt 0:00:41]} Rxf5 {[%emt 0:02:32]} 33. Qd5+ {[%emt 0:00:22]} Kh7 {[%emt 0:00:53]} 34. Bd3 {[%emt 0:00:11]} 1-0